fUST/lending_fUST_20240813
["ID","MTS","AMOUNT","RATE_DAILY","PERIOD"]
[334787165,1723564238461,-1670.74719108,0.00013,2]
[334787166,1723564238472,-150.112233,0.00013,2]
[334787167,1723564238481,-589.5356422,0.00013178,2]
[334787168,1723564238491,-81130.5851285,0.0001358,2]
[334787169,1723564238501,-162261.170257,0.0001359,2]
[334787170,1723564238510,-16845.96792075,0.000136,2]
[334787171,1723564238520,-294.7678211,0.000136,2]
[334787172,1723564238530,-150.112234,0.000136,2]
[334787173,1723564238540,-99037.72489927,0.000136,2]
[334787174,1723564238549,-81130.5851285,0.00013668,2]
[334787175,1723564238559,-81130.5851285,0.00013668,2]
[334787176,1723564238570,-200.0,0.00013673,2]
[334787177,1723564238579,-200.0,0.00013673,2]
[334787178,1723564238588,-200.0,0.00013673,2]
[334787179,1723564238601,-200.0,0.00013673,2]
[334787180,1723564238611,-200.0,0.00013673,2]
[334787181,1723564238620,-500.0,0.00013698,2]
[334787182,1723564238631,-500.0,0.00013698,2]
[334787183,1723564238641,-500.0,0.00013698,2]
[334787184,1723564238651,-500.0,0.00013698,2]
[334787185,1723564238660,-500.0,0.00013698,2]
[334787186,1723564238670,-535.11979458,0.00013698,2]
[334787187,1723564238680,-574.02874669,0.00013698,2]
[334787188,1723564238691,-500.0,0.00013698,2]
[334787189,1723564238701,-500.0,0.00013698,2]
[334787190,1723564238712,-500.0,0.00013698,2]
[334787191,1723564238722,-500.0,0.00013698,2]
[334787192,1723564238731,-500.0,0.00013698,2]
[334787193,1723564238741,-500.0,0.00013698,2]
[334787194,1723564238751,-500.0,0.00013698,2]
[334787195,1723564238761,-500.0,0.00013698,2]
[334787196,1723564238771,-500.0,0.00013698,2]
[334787197,1723564238782,-500.0,0.00013698,2]
[334787198,1723564238791,-500.0,0.00013698,2]
[334787199,1723564238800,-500.0,0.00013698,2]
[334787200,1723564238810,-500.0,0.00013698,2]
[334787201,1723564238820,-300.0,0.00013698,2]
[334787202,1723564238829,-325.21026407,0.00013698,2]
[334787203,1723564238838,-334.72589208,0.00013698,2]
[334787204,1723564238850,-500.0,0.00013698,2]
[334787205,1723564238860,-500.0,0.00013698,2]
[334787206,1723564238869,-590.15021926,0.00013698,2]
[334787207,1723564238879,-500.0,0.00013698,2]
[334787208,1723564238889,-500.0,0.00013698,2]
[334787209,1723564238899,-474.89940261,0.00013698,2]
[334787210,1723564238909,-500.0,0.00013698,2]
[334787211,1723564238919,-500.0,0.00013698,2]
[334787212,1723564238929,-500.0,0.00013698,2]
[334787213,1723564238939,-500.0,0.00013698,2]
[334787214,1723564238948,-166.07815123,0.00013698,2]
[334787215,1723564238957,-500.0,0.00013698,2]
[334787216,1723564238966,-500.0,0.00013698,2]
[334787217,1723564238976,-500.0,0.00013698,2]
[334787218,1723564238985,-500.0,0.00013698,2]
[334787219,1723564238994,-500.0,0.00013698,2]
[334787220,1723564239004,-500.0,0.00013698,2]
[334787221,1723564239013,-500.0,0.00013698,2]
[334787222,1723564239023,-500.0,0.00013698,2]
[334787223,1723564239033,-250.0,0.00013698,2]
[334787224,1723564239042,-500.0,0.00013698,2]
[334787225,1723564239053,-446.51224702,0.00013698,2]
[334787226,1723564239063,-500.0,0.00013698,2]
[334787227,1723564239073,-354.08086517,0.00013698,2]
[334787228,1723564239082,-500.0,0.00013698,2]
[334787229,1723564239093,-500.42672675,0.00013698,2]
[334787230,1723564239105,-655.86500246,0.00013698,2]
[334787231,1723564239116,-500.0,0.00013698,2]
[334787232,1723564239126,-368.86612925,0.00013698,2]
[334787233,1723564239137,-655.86500246,0.00013698,2]
[334787234,1723564239147,-655.86500246,0.00013698,2]
[334787235,1723564239157,-207.35847098,0.00013698,2]
[334787236,1723564239166,-655.86500246,0.00013698,2]
[334787237,1723564239175,-655.86500246,0.00013698,2]
[334787238,1723564239185,-655.86500246,0.00013698,2]
[334787239,1723564239194,-655.86500246,0.00013698,2]
[334787240,1723564239204,-655.86500246,0.00013698,2]
[334787241,1723564239213,-655.86500246,0.00013698,2]
[334787242,1723564239222,-655.86500246,0.00013698,2]
[334787243,1723564239231,-655.86500246,0.00013698,2]
[334787244,1723564239240,-655.86500246,0.00013698,2]
[334787245,1723564239251,-655.86500246,0.00013698,2]
[334787246,1723564239263,-655.86500246,0.00013698,2]
[334787247,1723564239273,-655.86500246,0.00013698,2]
[334787248,1723564239282,-655.86500246,0.00013698,2]
[334787249,1723564239291,-655.86500246,0.00013698,2]
[334787250,1723564239303,-655.86500246,0.00013698,2]
[334787251,1723564239312,-655.86500246,0.00013698,2]
[334787252,1723564239321,-655.86500246,0.00013698,2]
[334787253,1723564239333,-655.86500246,0.00013698,2]
[334787254,1723564239343,-655.86500246,0.00013698,2]
[334787255,1723564239353,-702.71250264,0.00013698,2]
[334787256,1723564239363,-702.71250264,0.00013698,2]
[334787257,1723564239374,-702.71250264,0.00013698,2]
[334787258,1723564239383,-702.71250264,0.00013698,2]
[334787259,1723564239393,-702.71250264,0.00013698,2]
[334787260,1723564239404,-702.71250264,0.00013698,2]
[334787261,1723564239413,-702.71250264,0.00013698,2]
[334787262,1723564239424,-500.0,0.00013698,2]
[334787263,1723564239434,-503.80614927,0.00013698,2]
[334787264,1723564239444,-500.0,0.00013698,2]
[334787265,1723564239453,-512.41,0.00013698,2]
[334787266,1723564239463,-500.0,0.00013698,2]
[334787267,1723564239473,-500.0,0.00013698,2]
[334787268,1723564239482,-470.70017869,0.00013698,2]
[334787269,1723564239491,-500.0,0.00013698,2]
[334787270,1723564239500,-514.28873313,0.00013698,2]
[334787271,1723564239510,-158.90983671,0.00013698,2]
[334787272,1723564239519,-606.82,0.00013698,2]
[334787273,1723564239529,-500.0,0.00013698,2]
[334787274,1723564239538,-500.0,0.00013698,2]
[334787275,1723564239547,-500.0,0.00013698,2]
[334787276,1723564239557,-500.0,0.00013698,2]
[334787277,1723564239567,-500.0,0.00013698,2]
[334787278,1723564239576,-500.0,0.00013698,2]
[334787279,1723564239585,-505.56303483,0.00013698,2]
[334787280,1723564239595,-500.0,0.00013698,2]
[334787281,1723564239604,-500.0,0.00013698,2]
[334787282,1723564239614,-500.0,0.00013698,2]
[334787283,1723564239623,-500.0,0.00013698,2]
[334787284,1723564239633,-500.0,0.00013698,2]
[334787285,1723564239642,-500.0,0.00013698,2]
[334787286,1723564239652,-206.02511562,0.00013698,2]
[334787287,1723564239661,-505.34168104,0.00013698,2]
[334787288,1723564239670,-500.0,0.00013698,2]
[334787289,1723564239681,-300.96958541,0.00013698,2]
[334787290,1723564239690,-500.0,0.00013698,2]
[334787291,1723564239699,-500.0,0.00013698,2]
[334787292,1723564239709,-500.0,0.00013698,2]
[334787293,1723564239718,-500.0,0.00013698,2]
[334787294,1723564239728,-502.15039408,0.00013698,2]
[334787295,1723564239738,-500.0,0.00013698,2]
[334787296,1723564239747,-501.03037611,0.00013698,2]
[334787297,1723564239757,-500.0,0.00013698,2]
[334787298,1723564239766,-514.45262368,0.00013698,2]
[334787300,1723564239776,-500.6539124,0.00013698,2]
[334787302,1723564239785,-500.0,0.00013698,2]
[334787305,1723564239795,-500.0,0.00013698,2]
[334787308,1723564239804,-500.0,0.00013698,2]
[334787310,1723564239814,-500.0,0.00013698,2]
[334787312,1723564239824,-500.0,0.00013698,2]
[334787314,1723564239834,-505.9565507,0.00013698,2]
[334787316,1723564239844,-503.6887129,0.00013698,2]
[334787318,1723564239853,-500.0,0.00013698,2]
[334787320,1723564239863,-533.97,0.00013698,2]
[334787322,1723564239875,-500.0,0.00013698,2]
[334787324,1723564239884,-500.0,0.00013698,2]
[334787326,1723564239894,-500.0,0.00013698,2]
[334787328,1723564239906,-652.92,0.00013698,2]
[334787329,1723564239916,-500.0,0.00013698,2]
[334787331,1723564239925,-500.0,0.00013698,2]
[334787333,1723564239934,-500.0,0.00013698,2]
[334787335,1723564239944,-395.49600483,0.00013698,2]
[334787337,1723564239954,-500.0,0.00013698,2]
[334787338,1723564239963,-503.24425912,0.00013698,2]
[334787339,1723564239973,-289.95408494,0.00013698,2]
[334787340,1723564239984,-500.0,0.00013698,2]
[334787341,1723564239993,-201.19215877,0.00013698,2]
[334787342,1723564240002,-500.0,0.00013698,2]
[334787344,1723564240011,-504.41781418,0.00013698,2]
[334787345,1723564240021,-500.0,0.00013698,2]
[334787346,1723564240030,-500.0,0.00013698,2]
[334787347,1723564240039,-500.0,0.00013698,2]
[334787348,1723564240048,-500.0,0.00013698,2]
[334787349,1723564240058,-500.0,0.00013698,2]
[334787350,1723564240068,-500.0,0.00013698,2]
[334787351,1723564240077,-500.0,0.00013698,2]
[334787352,1723564240086,-500.0,0.00013698,2]
[334787353,1723564240098,-463.29533031,0.00013698,2]
[334787354,1723564240107,-500.0,0.00013698,2]
[334787356,1723564240117,-500.0,0.00013698,2]
[334787357,1723564240126,-631.47498351,0.00013698,2]
[334787359,1723564240135,-677.41,0.00013698,2]
[334787360,1723564240144,-500.0,0.00013698,2]
[334787361,1723564240153,-500.0,0.00013698,2]
[334787362,1723564240163,-500.0,0.00013698,2]
[334787363,1723564240172,-518.10187527,0.00013698,2]
[334787364,1723564240181,-500.0,0.00013698,2]
[334787365,1723564240191,-502.96860766,0.00013698,2]
[334787366,1723564240199,-500.0,0.00013698,2]
[334787367,1723564240209,-500.0,0.00013698,2]
[334787368,1723564240218,-506.45694896,0.00013698,2]
[334787369,1723564240228,-500.0,0.00013698,2]
[334787370,1723564240237,-500.0,0.00013698,2]
[334787371,1723564240249,-500.0,0.00013698,2]
[334787372,1723564240261,-500.0,0.00013698,2]
[334787373,1723564240271,-518.15476045,0.00013698,2]
[334787374,1723564240279,-503.91010508,0.00013698,2]
[334787375,1723564240291,-500.0,0.00013698,2]
[334787376,1723564240301,-500.0,0.00013698,2]
[334787377,1723564240311,-500.0,0.00013698,2]
[334787378,1723564240322,-500.0,0.00013698,2]
[334787379,1723564240335,-500.0,0.00013698,2]
[334787380,1723564240348,-500.0,0.00013698,2]
[334787381,1723564240357,-500.0,0.00013698,2]
[334787382,1723564240368,-500.0,0.00013698,2]
[334787383,1723564240377,-500.0,0.00013698,2]
[334787384,1723564240387,-500.0,0.00013698,2]
[334787385,1723564240396,-500.0,0.00013698,2]
[334787386,1723564240406,-501.34584591,0.00013698,2]
[334787387,1723564240416,-500.0,0.00013698,2]
[334787388,1723564240425,-500.0,0.00013698,2]
[334787389,1723564240434,-696.95,0.00013698,2]
[334787390,1723564240444,-500.0,0.00013698,2]
[334787391,1723564240453,-500.0,0.00013698,2]
[334787392,1723564240463,-500.0,0.00013698,2]
[334787393,1723564240473,-500.0,0.00013698,2]
[334787394,1723564240482,-598.51,0.00013698,2]
[334787395,1723564240491,-151.0,0.00013698,2]
[334787396,1723564240501,-500.0,0.00013698,2]
[334787397,1723564240510,-500.0,0.00013698,2]
[334787398,1723564240519,-500.0,0.00013698,2]
[334787399,1723564240529,-500.0,0.00013698,2]
[334787400,1723564240538,-500.0,0.00013698,2]
[334787401,1723564240548,-512.18068449,0.00013698,2]
[334787402,1723564240557,-500.0,0.00013698,2]
[334787403,1723564240568,-500.0,0.00013698,2]
[334787404,1723564240577,-222.069321,0.00013698,2]
[334787405,1723564240587,-500.0,0.00013698,2]
[334787406,1723564240600,-222.069321,0.00013698,2]
[334787407,1723564240611,-500.0,0.00013698,2]
[334787408,1723564240621,-151.0,0.00013698,2]
[334787409,1723564240630,-500.0,0.00013698,2]
[334787410,1723564240640,-910.488498,0.00013698,2]
[334787411,1723564240649,-500.0,0.00013698,2]
[334787412,1723564240659,-500.0,0.00013698,2]
[334787413,1723564240669,-500.0,0.00013698,2]
[334787414,1723564240679,-408.28529605,0.00013698,2]
[334787415,1723564240688,-910.488498,0.00013698,2]
[334787416,1723564240698,-500.0,0.00013698,2]
[334787417,1723564240707,-500.0,0.00013698,2]
[334787418,1723564240717,-151.0,0.00013698,2]
[334787419,1723564240726,-500.0,0.00013698,2]
[334787420,1723564240736,-537.09112232,0.00013698,2]
[334787421,1723564240746,-663.3,0.00013698,2]
[334787422,1723564240756,-1123.58,0.00013698,2]
[334787423,1723564240765,-500.0,0.00013698,2]
[334787424,1723564240774,-500.0,0.00013698,2]
[334787425,1723564240784,-500.0,0.00013698,2]
[334787426,1723564240793,-500.0,0.00013698,2]
[334787427,1723564240802,-500.0,0.00013698,2]
[334787428,1723564240812,-602.71,0.00013698,2]
[334787429,1723564240822,-626.09,0.00013698,2]
[334787430,1723564240832,-151.0,0.00013698,2]
[334787431,1723564240842,-151.0,0.00013698,2]
[334787432,1723564240852,-500.0,0.00013698,2]
[334787433,1723564240862,-500.0,0.00013698,2]
[334787434,1723564240872,-966.32,0.00013698,2]
[334787435,1723564240882,-500.0,0.00013698,2]
[334787436,1723564240892,-151.0,0.00013698,2]
[334787437,1723564240901,-500.0,0.00013698,2]
[334787438,1723564240911,-500.0,0.00013698,2]
[334787439,1723564240920,-151.0,0.00013698,2]
[334787440,1723564240931,-500.0,0.00013698,2]
[334787441,1723564240941,-1431.08,0.00013698,2]
[334787442,1723564240952,-1046.54,0.00013698,2]
[334787443,1723564240962,-608.21,0.00013698,2]
[334787444,1723564240974,-500.0,0.00013698,2]
[334787445,1723564240984,-500.0,0.00013698,2]
[334787446,1723564240993,-500.0,0.00013698,2]
[334787447,1723564241002,-500.0,0.00013698,2]
[334787448,1723564241012,-2303.27,0.00013698,2]
[334787449,1723564241021,-500.0,0.00013698,2]
[334787450,1723564241031,-500.0,0.00013698,2]
[334787451,1723564241042,-500.0,0.00013698,2]
[334787452,1723564241051,-500.0,0.00013698,2]
[334787453,1723564241061,-500.0,0.00013698,2]
[334787454,1723564241070,-500.0,0.00013698,2]
[334787455,1723564241080,-500.0,0.00013698,2]
[334787456,1723564241090,-500.0,0.00013698,2]
[334787457,1723564241099,-185.174407,0.00013698,2]
[334787458,1723564241110,-463.567299,0.00013698,2]
[334787459,1723564241119,-1150.64,0.00013698,2]
[334787460,1723564241129,-721.42,0.00013698,2]
[334787461,1723564241138,-185.174407,0.00013698,2]
[334787462,1723564241147,-1388.51,0.00013698,2]
[334787463,1723564241157,-807.83,0.00013698,2]
[334787464,1723564241166,-463.567299,0.00013698,2]
[334787465,1723564241175,-512.12221757,0.00013698,2]
[334787466,1723564241185,-500.0,0.00013698,2]
[334787467,1723564241194,-170.374052,0.00013698,2]
[334787468,1723564241204,-151.0,0.00013698,2]
[334787469,1723564241213,-607.53,0.00013698,2]
[334787470,1723564241222,-500.0,0.00013698,2]
[334787471,1723564241232,-500.0,0.00013698,2]
[334787472,1723564241242,-151.0,0.00013698,2]
[334787473,1723564241254,-504.58301167,0.00013698,2]
[334787474,1723564241264,-720.82,0.00013698,2]
[334787475,1723564241273,-151.0,0.00013698,2]
[334787476,1723564241285,-504.90662939,0.00013698,2]
[334787477,1723564241294,-651.56,0.00013698,2]
[334787478,1723564241304,-500.0,0.00013698,2]
[334787479,1723564241313,-500.0,0.00013698,2]
[334787480,1723564241323,-500.0,0.00013698,2]
[334787481,1723564241335,-500.0,0.00013698,2]
[334787482,1723564241344,-5712.07,0.00013698,2]
[334787483,1723564241353,-500.0,0.00013698,2]
[334787484,1723564241364,-1117.35,0.00013698,2]
[334787485,1723564241373,-507.34383413,0.00013698,2]
[334787486,1723564241382,-506.73503378,0.00013698,2]
[334787487,1723564241392,-742.994818,0.00013698,2]
[334787488,1723564241404,-235.05888984,0.00013698,2]
[334787489,1723564241416,-742.994818,0.00013698,2]
[334787490,1723564241427,-1627.66,0.00013698,2]
[334787491,1723564241436,-592.18891,0.00013698,2]
[334787492,1723564241446,-500.0,0.00013698,2]
[334787493,1723564241457,-592.18891,0.00013698,2]
[334787494,1723564241467,-713.43,0.00013698,2]
[334787495,1723564241477,-500.0,0.00013698,2]
[334787496,1723564241486,-500.45252489,0.00013698,2]
[334787497,1723564241495,-395.18494103,0.00013698,2]
[334787498,1723564241504,-615.65,0.00013698,2]
[334787499,1723564241514,-1332.66,0.00013698,2]
[334787500,1723564241524,-151.0,0.00013698,2]
[334787501,1723564241667,-826.84,0.00013698,2]
[334787502,1723564241676,-151.0,0.00013698,2]
[334787503,1723564241687,-996.57,0.00013698,2]
[334787504,1723564241698,-505.59683593,0.00013698,2]
[334787505,1723564241708,-500.0,0.00013698,2]
[334787506,1723564241719,-500.0,0.00013698,2]
[334787507,1723564241729,-647.68,0.00013698,2]
[334787508,1723564241741,-500.0,0.00013698,2]
[334787509,1723564241752,-500.0,0.00013698,2]
[334787510,1723564241765,-518.607172,0.00013698,2]
[334787511,1723564241774,-907.95,0.00013698,2]
[334787512,1723564241784,-747.96,0.00013698,2]
[334787513,1723564241795,-924.16,0.00013698,2]
[334787514,1723564241806,-518.607172,0.00013698,2]
[334787515,1723564241817,-500.0,0.00013698,2]
[334787516,1723564241828,-610.57,0.00013698,2]
[334787517,1723564241837,-500.0,0.00013698,2]
[334787518,1723564241847,-1087.28,0.00013698,2]
[334787519,1723564241858,-500.0,0.00013698,2]
[334787520,1723564241870,-500.0,0.00013698,2]
[334787521,1723564241880,-500.0,0.00013698,2]
[334787522,1723564241891,-500.0,0.00013698,2]
[334787523,1723564241901,-500.0,0.00013698,2]
[334787524,1723564241912,-500.0,0.00013698,2]
[334787525,1723564241923,-500.0,0.00013698,2]
[334787526,1723564241935,-500.0,0.00013698,2]
[334787527,1723564241945,-500.0,0.00013698,2]
[334787528,1723564241955,-5343.94,0.00013698,2]
[334787529,1723564241966,-1479.28,0.00013698,2]
[334787530,1723564241977,-257.1212263,0.00013698,2]
[334787531,1723564241987,-500.0,0.00013698,2]
[334787532,1723564241996,-533.97,0.00013698,2]
[334787533,1723564242005,-910.94,0.00013698,2]
[334787534,1723564242014,-556.66,0.00013698,2]
[334787535,1723564242023,-563.048284,0.00013698,2]
[334787536,1723564242033,-737.59,0.00013698,2]
[334787537,1723564242045,-563.048284,0.00013698,2]
[334787538,1723564242056,-964.94,0.00013698,2]
[334787539,1723564242066,-500.0,0.00013698,2]
[334787540,1723564242078,-500.0,0.00013698,2]
[334787541,1723564242088,-2945.22,0.00013698,2]
[334787542,1723564242100,-1001.63,0.00013698,2]
[334787543,1723564242112,-750.82,0.00013698,2]
[334787544,1723564242121,-500.0,0.00013698,2]
[334787545,1723564242130,-566.28,0.00013698,2]
[334787546,1723564242139,-3894.24,0.00013698,2]
[334787547,1723564242149,-151.0,0.00013698,2]
[334787548,1723564242158,-658.85,0.00013698,2]
[334787549,1723564242167,-913.51,0.00013698,2]
[334787550,1723564242176,-505.9154111,0.00013698,2]
[334787551,1723564242185,-593.93,0.00013698,2]
[334787552,1723564242195,-1034.512343,0.00013698,2]
[334787553,1723564242204,-1034.512343,0.00013698,2]
[334787554,1723564242214,-789.08,0.00013698,2]
[334787555,1723564242222,-3153.19,0.00013698,2]
[334787556,1723564242232,-1069.04,0.00013698,2]
[334787557,1723564242242,-482.43252552,0.00013698,2]
[334787558,1723564242255,-1034.512343,0.00013698,2]
[334787559,1723564242264,-780.43,0.00013698,2]
[334787560,1723564242276,-1034.512343,0.00013698,2]
[334787561,1723564242287,-814.32,0.00013698,2]
[334787562,1723564242298,-500.0,0.00013698,2]
[334787563,1723564242307,-1190.63,0.00013698,2]
[334787564,1723564242318,-500.0,0.00013698,2]
[334787565,1723564242331,-920.75,0.00013698,2]
[334787566,1723564242343,-698.2,0.00013698,2]
[334787567,1723564242355,-500.0,0.00013698,2]
[334787568,1723564242367,-500.0,0.00013698,2]
[334787569,1723564242378,-500.0,0.00013698,2]
[334787570,1723564242387,-3236.61,0.00013698,2]
[334787571,1723564242398,-500.0,0.00013698,2]
[334787573,1723564242409,-500.0,0.00013698,2]
[334787575,1723564242419,-552.4,0.00013698,2]
[334787577,1723564242431,-1423.097149,0.00013699,2]
[334787578,1723564242441,-1423.097149,0.00013699,2]
[334787579,1723564242451,-1326.360543,0.00013699,2]
[334787580,1723564242461,-3000.0,0.00013699,2]
[334787581,1723564242472,-294.7678211,0.000137,2]
[334787582,1723564242482,-207.3665351,0.000137,2]
[334787583,1723564242493,-207.3665351,0.000137,2]
[334787584,1723564242503,-294.7678211,0.000137,2]
[334787585,1723564242514,-1477.98960541,0.00013767,2]
[334787624,1723564242948,-3845.41542445,0.00013767,2]
[334787625,1723564242957,-465.00145732,0.00013857,2]
[334787626,1723564242967,-500.0,0.00013899,2]
[334787627,1723564242976,-32644.80255558,0.000139,2]
[334787628,1723564242985,-500.0,0.0001395,2]
[334787629,1723564242996,-500.0,0.00013952,2]
[334787630,1723564243006,-273.63,0.00013952,2]
[334787631,1723564243015,-150.0,0.00013964,2]
[334787632,1723564243024,-508.0,0.00013964,2]
[334787633,1723564243033,-1413.0,0.00013964,2]
[334787634,1723564243043,-203.50934828,0.00013971,2]
[334787635,1723564243052,-5988.76086081,0.00013971,2]
[334787636,1723564243061,-512.41,0.00013972,2]
[334787637,1723564243070,-500.0,0.00013972,2]
[334787638,1723564243081,-606.82,0.00013972,2]
[334787639,1723564243090,-500.0,0.00013972,2]
[334787640,1723564243101,-500.0,0.00013972,2]
[334787641,1723564243112,-500.0,0.00013972,2]
[334787642,1723564243122,-500.0,0.00013972,2]
[334787643,1723564243131,-500.0,0.00013972,2]
[334787644,1723564243142,-500.0,0.00013972,2]
[334787645,1723564243152,-372.82831761,0.00013972,2]
[334787646,1723564243163,-500.0,0.00013972,2]
[334787647,1723564243173,-151.0,0.00013972,2]
[334787648,1723564243182,-500.0,0.00013972,2]
[334787649,1723564243191,-406.39971067,0.00013972,2]
[334787650,1723564243202,-151.0,0.00013972,2]
[334787651,1723564243213,-449.81887,0.00013972,2]
[334787652,1723564243223,-449.81887,0.00013972,2]
[334787653,1723564243234,-151.0,0.00013972,2]
[334787654,1723564243246,-533.97,0.00013972,2]
[334787655,1723564243262,-500.0,0.00013972,2]
[334787656,1723564243272,-652.92,0.00013972,2]
[334787658,1723564243281,-151.0,0.00013972,2]
[334787661,1723564243291,-500.0,0.00013972,2]
[334787663,1723564243302,-156.45,0.00013972,2]
[334787665,1723564243312,-500.0,0.00013972,2]
[334787667,1723564243321,-151.0,0.00013972,2]
[334787669,1723564243331,-500.0,0.00013972,2]
[334787671,1723564243340,-500.0,0.00013972,2]
[334787672,1723564243351,-500.0,0.00013972,2]
[334787674,1723564243360,-500.0,0.00013972,2]
[334787675,1723564243370,-151.917812,0.00013972,2]
[334787676,1723564243380,-151.0,0.00013972,2]
[334787678,1723564243390,-677.41,0.00013972,2]
[334787679,1723564243400,-502.89881437,0.00013972,2]
[334787680,1723564243411,-151.0,0.00013972,2]
[334787681,1723564243420,-500.0,0.00013972,2]
[334787682,1723564243431,-151.0,0.00013972,2]
[334787683,1723564243443,-500.0,0.00013972,2]
[334787684,1723564243455,-500.0,0.00013972,2]
[334787685,1723564243467,-500.0,0.00013972,2]
[334787686,1723564243477,-500.0,0.00013972,2]
[334787687,1723564243487,-500.0,0.00013972,2]
[334787688,1723564243498,-347.8709503,0.00013972,2]
[334787689,1723564243509,-500.0,0.00013972,2]
[334787690,1723564243520,-500.0,0.00013972,2]
[334787691,1723564243530,-500.0,0.00013972,2]
[334787692,1723564243539,-400.545272,0.00013972,2]
[334787693,1723564243550,-205.504568,0.00013972,2]
[334787694,1723564243561,-500.0,0.00013972,2]
[334787695,1723564243570,-151.0,0.00013972,2]
[334787696,1723564243580,-500.0,0.00013972,2]
[334787697,1723564243590,-696.95,0.00013972,2]
[334787698,1723564243601,-500.0,0.00013972,2]
[334787699,1723564243611,-500.0,0.00013972,2]
[334787700,1723564243620,-500.0,0.00013972,2]
[334787701,1723564243630,-500.0,0.00013972,2]
[334787702,1723564243639,-388.353977,0.00013972,2]
[334787703,1723564243648,-598.51,0.00013972,2]
[334787704,1723564243659,-388.353977,0.00013972,2]
[334787705,1723564243668,-151.0,0.00013972,2]
[334787706,1723564243678,-151.0,0.00013972,2]
[334787707,1723564243687,-500.0,0.00013972,2]
[334787708,1723564243696,-500.0,0.00013972,2]
[334787709,1723564243705,-500.0,0.00013972,2]
[334787710,1723564243714,-151.0,0.00013972,2]
[334787711,1723564243724,-500.0,0.00013972,2]
[334787712,1723564243733,-500.0,0.00013972,2]
[334787713,1723564243742,-222.069321,0.00013972,2]
[334787714,1723564243753,-500.0,0.00013972,2]
[334787715,1723564243762,-222.069321,0.00013972,2]
[334787716,1723564243773,-500.0,0.00013972,2]
[334787717,1723564243783,-151.0,0.00013972,2]
[334787718,1723564243794,-910.488498,0.00013972,2]
[334787719,1723564243804,-500.0,0.00013972,2]
[334787720,1723564243813,-910.488498,0.00013972,2]
[334787721,1723564243825,-500.0,0.00013972,2]
[334787722,1723564243834,-151.0,0.00013972,2]
[334787723,1723564243843,-663.3,0.00013972,2]
[334787724,1723564243856,-1123.58,0.00013972,2]
[334787725,1723564243866,-500.0,0.00013972,2]
[334787726,1723564243878,-602.71,0.00013972,2]
[334787727,1723564243887,-626.09,0.00013972,2]
[334787728,1723564243896,-151.0,0.00013972,2]
[334787729,1723564243906,-151.0,0.00013972,2]
[334787730,1723564243916,-500.0,0.00013972,2]
[334787731,1723564243926,-500.0,0.00013972,2]
[334787732,1723564243937,-966.32,0.00013972,2]
[334787733,1723564243946,-151.0,0.00013972,2]
[334787734,1723564243956,-151.0,0.00013972,2]
[334787735,1723564243966,-1431.08,0.00013972,2]
[334787736,1723564243978,-1046.54,0.00013972,2]
[334787737,1723564243989,-608.21,0.00013972,2]
[334787738,1723564243998,-2303.27,0.00013972,2]